[Event "*** Titled Tuesday Blitz"]
[Site "Chess.com"]
[Date "2018.01.02"]
[Round "5"]
[White "Saitama_Hero"]
[Black "Abrito99"]
[Result "1-0"]
[WhiteElo "2203"]
[BlackElo "2362"]
[TimeControl "180+2"]
[EndTime "14:06:58 PST"]
[Termination "Saitama_Hero won on time"]

1. d4 {[%clk 0:03:01.9]} 1... Nf6 {[%clk 0:02:59.7]} 2. c4 {[%clk 0:03:03.3]}
2... g6 {[%clk 0:02:54.6]} 3. Nc3 {[%clk 0:03:01.7]} 3... Bg7 {[%clk 0:02:55.7]}
4. e4 {[%clk 0:03:01.7]} 4... d6 {[%clk 0:02:57.2]} 5. f4 {[%clk 0:03:03.1]}
5... O-O {[%clk 0:02:52.8]} 6. Nf3 {[%clk 0:03:04.3]} 6... c5 {[%clk 0:02:52.9]}
7. d5 {[%clk 0:03:04.9]} 7... Bg4 {[%clk 0:02:53.9]} 8. Be2 {[%clk 0:03:01.4]}
8... e6 {[%clk 0:02:52.4]} 9. O-O {[%clk 0:02:59.1]} 9... exd5 {[%clk
0:02:51.9]} 10. cxd5 {[%clk 0:03:01]} 10... Re8 {[%clk 0:02:50.9]} 11. e5 {[%clk
0:02:22.5]} 11... Nfd7 {[%clk 0:02:19.5]} 12. e6 {[%clk 0:02:15.8]} 12... fxe6
{[%clk 0:01:49.2]} 13. dxe6 {[%clk 0:02:17.7]} 13... Nf8 {[%clk 0:01:32.2]} 14.
Qb3 {[%clk 0:01:39.9]} 14... Bxe6 {[%clk 0:01:26.3]} 15. Qxb7 {[%clk 0:01:38.8]}
15... Nbd7 {[%clk 0:01:26.9]} 16. Ng5 {[%clk 0:01:40.3]} 16... Rb8 {[%clk
0:01:07.3]} 17. Qxa7 {[%clk 0:01:38.9]} 17... Nb6 {[%clk 0:00:43.4]} 18. a4
{[%clk 0:01:13.2]} 18... Bc4 {[%clk 0:00:24.1]} 19. Bxc4+ {[%clk 0:01:12]} 19...
d5 {[%clk 0:00:20.7]} 20. Nxd5 {[%clk 0:01:06.1]} 20... Nxc4 {[%clk 0:00:20]}
21. Qf7+ {[%clk 0:01:03.1]} 21... Kh8 {[%clk 0:00:21.1]} 22. f5 {[%clk
0:00:32.7]} 22... Ne5 {[%clk 0:00:20.2]} 23. f6 {[%clk 0:00:26.4]} 23... Bh6
{[%clk 0:00:17.2]} 24. Ne7 {[%clk 0:00:20.6]} 24... Qd4+ {[%clk 0:00:07.8]} 25.
Kh1 {[%clk 0:00:17.9]} 25... Rxe7 {[%clk 0:00:05.9]} 26. Qxe7 {[%clk 0:00:14.4]}
26... Rd8 {[%clk 0:00:02]} 27. Qxe5 {[%clk 0:00:12.4]} 1-0

[Event "*** Titled Tuesday Blitz"]
[Site "Chess.com"]
[Date "2018.01.02"]
[Round "5"]
[White "korason34"]
[Black "StellarChessPro"]
[Result "0-1"]
[WhiteElo "2317"]
[BlackElo "2389"]
[TimeControl "180+2"]
[EndTime "14:07:04 PST"]
[Termination "StellarChessPro won by resignation"]

1. d4 {[%clk 0:03:01.9]} 1... d5 {[%clk 0:03:00.1]} 2. c4 {[%clk 0:03:03.3]}
2... c6 {[%clk 0:03:02]} 3. Nf3 {[%clk 0:03:02.2]} 3... Nf6 {[%clk 0:03:02.4]}
4. Nc3 {[%clk 0:03:01.9]} 4... e6 {[%clk 0:03:02.7]} 5. Bg5 {[%clk 0:03:00.4]}
5... dxc4 {[%clk 0:03:04.6]} 6. a4 {[%clk 0:02:46.8]} 6... Bb4 {[%clk
0:03:04.4]} 7. e4 {[%clk 0:02:47.3]} 7... b5 {[%clk 0:03:03.9]} 8. axb5 {[%clk
0:02:40]} 8... cxb5 {[%clk 0:02:53.5]} 9. e5 {[%clk 0:02:40.6]} 9... h6 {[%clk
0:02:40.7]} 10. exf6 {[%clk 0:02:41.1]} 10... hxg5 {[%clk 0:02:34.7]} 11. fxg7
{[%clk 0:02:41]} 11... Rg8 {[%clk 0:02:31.5]} 12. Qc2 {[%clk 0:02:40.4]} 12...
Bb7 {[%clk 0:02:31.9]} 13. Qh7 {[%clk 0:02:38.8]} 13... Kd7 {[%clk 0:02:31.3]}
14. h4 {[%clk 0:02:12.2]} 14... Nc6 {[%clk 0:02:27.4]} 15. hxg5 {[%clk
0:02:08.2]} 15... Kc7 {[%clk 0:02:27.8]} 16. Be2 {[%clk 0:02:08.2]} 16... Nxd4
{[%clk 0:02:17.7]} 17. Rd1 {[%clk 0:01:41.1]} 17... Nxf3+ {[%clk 0:02:16.2]} 18.
Bxf3 {[%clk 0:01:38.8]} 18... Qxg5 {[%clk 0:02:16.7]} 19. Bxb7 {[%clk
0:01:33.8]} 19... Kxb7 {[%clk 0:02:17.4]} 20. Qe4+ {[%clk 0:01:23.2]} 20... Kb6
{[%clk 0:02:14.3]} 21. Rh7 {[%clk 0:01:18.4]} 21... Rad8 {[%clk 0:01:53.7]} 22.
Rxd8 {[%clk 0:00:36.6]} 22... Rxd8 {[%clk 0:01:22.5]} 23. Qc2 {[%clk 0:00:23.1]}
23... Rd3 {[%clk 0:01:14.7]} 24. g3 {[%clk 0:00:20.4]} 24... Qg6 {[%clk
0:00:54.8]} 25. Rh4 {[%clk 0:00:13.5]} 25... Qxg7 {[%clk 0:00:52.9]} 26. Kf1
{[%clk 0:00:14.2]} 26... Bxc3 {[%clk 0:00:53.6]} 27. bxc3 {[%clk 0:00:14.4]}
27... Qxc3 {[%clk 0:00:55.5]} 28. Qe2 {[%clk 0:00:14.6]} 28... a5 {[%clk
0:00:47.4]} 29. Kg2 {[%clk 0:00:14.2]} 29... a4 {[%clk 0:00:48]} 30. Rh7 {[%clk
0:00:14.8]} 30... Qd4 {[%clk 0:00:42.7]} 31. Rxf7 {[%clk 0:00:15.3]} 31... Qd5+
{[%clk 0:00:43.1]} 32. Kh2 {[%clk 0:00:14.3]} 32... a3 {[%clk 0:00:43.8]} 33.
Rf8 {[%clk 0:00:12.8]} 33... c3 {[%clk 0:00:37.4]} 34. Re8 {[%clk 0:00:13.4]}
34... a2 {[%clk 0:00:36.2]} 35. Rxe6+ {[%clk 0:00:13.9]} 35... Ka5 {[%clk
0:00:34.1]} 36. Re8 {[%clk 0:00:14.3]} 36... a1=Q {[%clk 0:00:32.6]} 0-1

[Event "*** Titled Tuesday Blitz"]
[Site "Chess.com"]
[Date "2018.01.02"]
[Round "5"]
[White "temiksmozg"]
[Black "DagurR"]
[Result "1-0"]
[WhiteElo "2475"]
[BlackElo "2321"]
[TimeControl "180+2"]
[EndTime "14:07:22 PST"]
[Termination "temiksmozg won by resignation"]

1. d3 {[%clk 0:03:01.5]} 1... d6 {[%clk 0:02:57.5]} 2. g3 {[%clk 0:03:00.9]}
2... g6 {[%clk 0:02:56.6]} 3. Bg2 {[%clk 0:02:58.2]} 3... Bg7 {[%clk 0:02:56.5]}
4. e4 {[%clk 0:02:54.1]} 4... e5 {[%clk 0:02:57.5]} 5. Ne2 {[%clk 0:02:49.5]}
5... Ne7 {[%clk 0:02:58.6]} 6. O-O {[%clk 0:02:50.7]} 6... O-O {[%clk 0:03:00]}
7. Nbc3 {[%clk 0:02:49.2]} 7... f5 {[%clk 0:02:56.8]} 8. exf5 {[%clk 0:02:49.3]}
8... gxf5 {[%clk 0:02:55.2]} 9. f4 {[%clk 0:02:49.3]} 9... c6 {[%clk 0:02:56.7]}
10. Be3 {[%clk 0:02:44.4]} 10... Ng6 {[%clk 0:02:56.2]} 11. Qd2 {[%clk
0:02:44.3]} 11... Be6 {[%clk 0:02:42.4]} 12. Rf2 {[%clk 0:02:40.6]} 12... Nd7
{[%clk 0:02:43.4]} 13. Raf1 {[%clk 0:02:39.4]} 13... Qe7 {[%clk 0:02:37.4]} 14.
Bh3 {[%clk 0:02:37.6]} 14... exf4 {[%clk 0:02:14.9]} 15. Nxf4 {[%clk 0:02:36.8]}
15... Nxf4 {[%clk 0:02:14.9]} 16. Bxf4 {[%clk 0:02:32.1]} 16... Rae8 {[%clk
0:01:55.3]} 17. Ne2 {[%clk 0:02:24.3]} 17... Bxb2 {[%clk 0:01:46.4]} 18. c3
{[%clk 0:02:18.1]} 18... Ba3 {[%clk 0:01:47.7]} 19. d4 {[%clk 0:02:19.4]} 19...
Nf6 {[%clk 0:01:43.1]} 20. Bg5 {[%clk 0:02:14.1]} 20... Qg7 {[%clk 0:01:21.8]}
21. Bxf6 {[%clk 0:02:12.7]} 21... Qxf6 {[%clk 0:00:46.2]} 22. Qd3 {[%clk
0:02:12.7]} 22... Qe7 {[%clk 0:00:28.8]} 23. Nf4 {[%clk 0:02:11.8]} 23... Bd7
{[%clk 0:00:26.6]} 24. Ng2 {[%clk 0:02:02.2]} 24... d5 {[%clk 0:00:19.6]} 25.
Nh4 {[%clk 0:01:58.9]} 25... f4 {[%clk 0:00:19.4]} 26. Bxd7 {[%clk 0:01:55.5]}
26... Qxd7 {[%clk 0:00:20.3]} 27. Rxf4 {[%clk 0:01:55.6]} 27... Rxf4 {[%clk
0:00:21.5]} 28. Rxf4 {[%clk 0:01:57]} 28... Bd6 {[%clk 0:00:22.6]} 29. Rf3
{[%clk 0:01:52]} 29... Rf8 {[%clk 0:00:23.8]} 30. Nf5 {[%clk 0:01:52.6]} 30...
Bc7 {[%clk 0:00:25.4]} 31. Kg2 {[%clk 0:01:53.2]} 31... Kh8 {[%clk 0:00:24.8]}
32. h4 {[%clk 0:01:54.1]} 32... Qe6 {[%clk 0:00:26.3]} 33. g4 {[%clk 0:01:51.2]}
33... b6 {[%clk 0:00:27.7]} 34. h5 {[%clk 0:01:37.2]} 34... Re8 {[%clk 0:00:29]}
35. Re3 {[%clk 0:01:27.6]} 35... Qf7 {[%clk 0:00:28.1]} 36. Kf3 {[%clk
0:01:27.9]} 36... Bd8 {[%clk 0:00:21.6]} 37. Rxe8+ {[%clk 0:01:18.8]} 37... Qxe8
{[%clk 0:00:23.5]} 38. Qe3 {[%clk 0:01:19.7]} 38... Qxe3+ {[%clk 0:00:21.8]} 39.
Kxe3 {[%clk 0:01:21.6]} 39... Bg5+ {[%clk 0:00:23]} 40. Kd3 {[%clk 0:01:22.5]}
40... Kg8 {[%clk 0:00:24.5]} 41. Nd6 {[%clk 0:01:23.9]} 41... Bf4 {[%clk
0:00:23.6]} 42. Nc8 {[%clk 0:01:20.4]} 42... Kg7 {[%clk 0:00:18.7]} 43. Nxa7
{[%clk 0:01:20.9]} 43... Kf6 {[%clk 0:00:19.9]} 44. Nxc6 {[%clk 0:01:22.1]}
44... Kg5 {[%clk 0:00:21.4]} 45. Ne7 {[%clk 0:01:19.1]} 45... Kxg4 {[%clk
0:00:22.2]} 46. Nxd5 {[%clk 0:01:19.6]} 46... Bd6 {[%clk 0:00:22.7]} 47. Nf6+
{[%clk 0:01:13.5]} 47... Kg5 {[%clk 0:00:21.5]} 48. Nxh7+ {[%clk 0:01:14.9]}
48... Kf5 {[%clk 0:00:20.1]} 49. Kc4 {[%clk 0:01:14.2]} 49... Be7 {[%clk
0:00:21.2]} 50. Kb5 {[%clk 0:01:14.5]} 50... Bd8 {[%clk 0:00:22.6]} 51. Nf8
{[%clk 0:01:13.6]} 51... Kg5 {[%clk 0:00:23.9]} 52. Ne6+ {[%clk 0:01:14.7]} 1-0

[Event "*** Titled Tuesday Blitz"]
[Site "Chess.com"]
[Date "2018.01.02"]
[Round "5"]
[White "pKiLz5Rn9b"]
[Black "Zufi1811"]
[Result "1-0"]
[WhiteElo "2618"]
[BlackElo "2401"]
[TimeControl "180+2"]
[EndTime "14:07:37 PST"]
[Termination "pKiLz5Rn9b won by checkmate"]

1. b3 {[%clk 0:03:01.9]} 1... g6 {[%clk 0:02:59.3]} 2. Bb2 {[%clk 0:03:03.4]}
2... Nf6 {[%clk 0:03:00.8]} 3. Nf3 {[%clk 0:03:05]} 3... Bg7 {[%clk 0:03:01.4]}
4. c4 {[%clk 0:03:06.6]} 4... O-O {[%clk 0:03:02.7]} 5. g3 {[%clk 0:03:07.6]}
5... b6 {[%clk 0:02:57.6]} 6. Bg2 {[%clk 0:03:08.4]} 6... Bb7 {[%clk 0:02:59.1]}
7. d4 {[%clk 0:03:08.8]} 7... e6 {[%clk 0:02:58.5]} 8. O-O {[%clk 0:03:09.1]}
8... Ne4 {[%clk 0:02:52.8]} 9. e3 {[%clk 0:03:08.8]} 9... d6 {[%clk 0:02:47.4]}
10. Qc2 {[%clk 0:03:08.6]} 10... Nd7 {[%clk 0:02:44]} 11. Rd1 {[%clk 0:03:09.5]}
11... f5 {[%clk 0:02:41.7]} 12. d5 {[%clk 0:03:10.4]} 12... Bxb2 {[%clk
0:02:33.7]} 13. Qxb2 {[%clk 0:03:12.3]} 13... Qf6 {[%clk 0:02:32]} 14. Qxf6
{[%clk 0:03:07.3]} 14... Rxf6 {[%clk 0:02:20]} 15. Nd4 {[%clk 0:03:07.6]} 15...
exd5 {[%clk 0:02:13.8]} 16. cxd5 {[%clk 0:03:09.5]} 16... a6 {[%clk 0:02:09.7]}
17. Ne6 {[%clk 0:03:07.2]} 17... Rc8 {[%clk 0:02:06.4]} 18. f3 {[%clk
0:02:59.1]} 18... Nec5 {[%clk 0:02:04.7]} 19. Nc3 {[%clk 0:03:00.6]} 19... Nxe6
{[%clk 0:02:04.1]} 20. dxe6 {[%clk 0:03:02.1]} 20... Rxe6 {[%clk 0:02:05.9]} 21.
Kf2 {[%clk 0:03:03]} 21... Rce8 {[%clk 0:02:03.1]} 22. Re1 {[%clk 0:03:02.9]}
22... Nc5 {[%clk 0:02:00.3]} 23. Rad1 {[%clk 0:03:03.3]} 23... a5 {[%clk
0:02:01.7]} 24. Bf1 {[%clk 0:03:04.1]} 24... Kg7 {[%clk 0:02:00.9]} 25. Bc4
{[%clk 0:03:02.8]} 25... R6e7 {[%clk 0:02:00.9]} 26. Bd5 {[%clk 0:03:04.2]}
26... c6 {[%clk 0:01:58.7]} 27. Bc4 {[%clk 0:03:02.8]} 27... d5 {[%clk
0:01:59.8]} 28. Bf1 {[%clk 0:03:04.3]} 28... Ba6 {[%clk 0:01:59.1]} 29. Bxa6
{[%clk 0:02:59.3]} 29... Nxa6 {[%clk 0:02:01]} 30. Na4 {[%clk 0:03:00.4]} 30...
b5 {[%clk 0:01:56.6]} 31. Nb2 {[%clk 0:03:01.7]} 31... Nb4 {[%clk 0:01:55.5]}
32. Rc1 {[%clk 0:02:43.4]} 32... d4 {[%clk 0:01:29.8]} 33. a3 {[%clk 0:02:33.6]}
33... dxe3+ {[%clk 0:01:26.2]} 34. Ke2 {[%clk 0:02:34.4]} 34... Nd5 {[%clk
0:01:11.7]} 35. Rxc6 {[%clk 0:02:34.3]} 35... b4 {[%clk 0:01:13]} 36. axb4
{[%clk 0:02:32.2]} 36... axb4 {[%clk 0:01:14.9]} 37. Na4 {[%clk 0:02:31.4]}
37... f4 {[%clk 0:01:15.5]} 38. Rd1 {[%clk 0:02:28.9]} 38... Nf6 {[%clk
0:01:15.3]} 39. gxf4 {[%clk 0:02:24.8]} 39... Nh5 {[%clk 0:01:15.8]} 40. Rd4
{[%clk 0:02:25.6]} 40... Rf8 {[%clk 0:01:08.5]} 41. Rcc4 {[%clk 0:02:23.4]}
41... Kh6 {[%clk 0:00:57.5]} 42. Rxb4 {[%clk 0:02:21.6]} 42... Ng7 {[%clk
0:00:58.3]} 43. Nc5 {[%clk 0:02:18.1]} 43... Nf5 {[%clk 0:00:57.9]} 44. Rd5
{[%clk 0:01:59.2]} 44... Ra8 {[%clk 0:00:48.9]} 45. Ra4 {[%clk 0:02:00.3]} 45...
Rb8 {[%clk 0:00:48.5]} 46. Ra6 {[%clk 0:01:53.8]} 46... Kh5 {[%clk 0:00:45.1]}
47. Ne4 {[%clk 0:01:24.8]} 47... Rf7 {[%clk 0:00:12.6]} 48. Rxf5+ {[%clk
0:01:14.6]} 48... Rxf5 {[%clk 0:00:09.6]} 49. Ng3+ {[%clk 0:01:16]} 49... Kh4
{[%clk 0:00:10.2]} 50. Nxf5+ {[%clk 0:01:17.4]} 50... gxf5 {[%clk 0:00:12.1]}
51. Rh6# {[%clk 0:01:16.4]} 1-0

[Event "*** Titled Tuesday Blitz"]
[Site "Chess.com"]
[Date "2018.01.02"]
[Round "5"]
[White "RaphaeI"]
[Black "juniortay"]
[Result "1-0"]
[WhiteElo "2483"]
[BlackElo "2289"]
[TimeControl "180+2"]
[EndTime "14:07:46 PST"]
[Termination "RaphaeI won by resignation"]

1. d4 {[%clk 0:03:01.9]} 1... Nf6 {[%clk 0:03:00.4]} 2. c4 {[%clk 0:02:57.7]}
2... g6 {[%clk 0:03:01.4]} 3. Nc3 {[%clk 0:02:58.3]} 3... Bg7 {[%clk 0:03:02.5]}
4. e4 {[%clk 0:02:58.8]} 4... d6 {[%clk 0:03:03.9]} 5. Be2 {[%clk 0:02:59.7]}
5... O-O {[%clk 0:03:05.2]} 6. Be3 {[%clk 0:02:56.5]} 6... Nbd7 {[%clk
0:03:03.9]} 7. d5 {[%clk 0:02:35.2]} 7... c5 {[%clk 0:03:04]} 8. Nf3 {[%clk
0:02:14.4]} 8... b5 {[%clk 0:03:03.1]} 9. cxb5 {[%clk 0:02:14.5]} 9... a6 {[%clk
0:03:04.2]} 10. a4 {[%clk 0:02:14.5]} 10... Qa5 {[%clk 0:02:59.7]} 11. O-O
{[%clk 0:02:06.6]} 11... Ng4 {[%clk 0:01:58.4]} 12. Bd2 {[%clk 0:02:05.6]} 12...
Qc7 {[%clk 0:01:44]} 13. Qc2 {[%clk 0:01:55]} 13... e6 {[%clk 0:01:37.9]} 14.
Rfd1 {[%clk 0:01:26.2]} 14... Bb7 {[%clk 0:01:36.3]} 15. Ng5 {[%clk 0:01:04.6]}
15... Ndf6 {[%clk 0:01:10.5]} 16. dxe6 {[%clk 0:01:00.8]} 16... d5 {[%clk
0:01:11.6]} 17. g3 {[%clk 0:00:33.4]} 17... d4 {[%clk 0:01:06.7]} 18. Nd5 {[%clk
0:00:21.1]} 18... Nxd5 {[%clk 0:00:57.7]} 19. exd5 {[%clk 0:00:23]} 19... Nxf2
{[%clk 0:00:50.9]} 20. Bf4 {[%clk 0:00:16.2]} 20... Qd8 {[%clk 0:00:33.8]} 21.
exf7+ {[%clk 0:00:12.5]} 21... Kh8 {[%clk 0:00:29.7]} 22. Kxf2 {[%clk
0:00:11.1]} 22... h6 {[%clk 0:00:27.1]} 23. Ne6 {[%clk 0:00:11.2]} 23... Qxd5
{[%clk 0:00:28.1]} 24. Nxf8 {[%clk 0:00:10.6]} 24... Rxf8 {[%clk 0:00:26.9]} 25.
Rf1 {[%clk 0:00:08.5]} 25... Rxf7 {[%clk 0:00:20.4]} 26. Qc4 {[%clk 0:00:09.2]}
26... Qg2+ {[%clk 0:00:20.5]} 27. Ke1 {[%clk 0:00:10.4]} 27... Re7 {[%clk
0:00:22.2]} 28. Rd1 {[%clk 0:00:09.1]} 28... Bd5 {[%clk 0:00:20]} 29. Qd3 {[%clk
0:00:08.5]} 29... c4 {[%clk 0:00:21.4]} 30. Qd2 {[%clk 0:00:07.9]} 30... d3
{[%clk 0:00:21.6]} 31. Rf2 {[%clk 0:00:07.4]} 31... Qg1+ {[%clk 0:00:20.5]} 32.
Rf1 {[%clk 0:00:08.6]} 32... Qxh2 {[%clk 0:00:21.7]} 33. Be3 {[%clk 0:00:08.2]}
33... dxe2 {[%clk 0:00:21]} 34. Qxe2 {[%clk 0:00:09.4]} 34... Qxe2+ {[%clk
0:00:21.2]} 35. Kxe2 {[%clk 0:00:10.4]} 35... Bxb2 {[%clk 0:00:22.4]} 36. Rxd5
{[%clk 0:00:11.2]} 36... c3 {[%clk 0:00:22.2]} 37. Kd3 {[%clk 0:00:09.9]} 37...
Kg7 {[%clk 0:00:17.2]} 38. Bd4+ {[%clk 0:00:11.1]} 38... Kh7 {[%clk 0:00:18.8]}
39. Bxc3 {[%clk 0:00:13]} 39... Ba3 {[%clk 0:00:19.7]} 40. bxa6 {[%clk
0:00:13.5]} 1-0

[Event "*** Titled Tuesday Blitz"]
[Site "Chess.com"]
[Date "2018.01.02"]
[Round "5"]
[White "jposthuma"]
[Black "DrZeiss"]
[Result "0-1"]
[WhiteElo "2330"]
[BlackElo "2168"]
[TimeControl "180+2"]
[EndTime "14:07:46 PST"]
[Termination "DrZeiss won on time"]

1. d4 {[%clk 0:03:01.9]} 1... c5 {[%clk 0:03:00.4]} 2. d5 {[%clk 0:03:01.3]}
2... e6 {[%clk 0:03:01.3]} 3. c4 {[%clk 0:02:59.8]} 3... exd5 {[%clk 0:03:01.6]}
4. cxd5 {[%clk 0:03:01.7]} 4... d6 {[%clk 0:03:02.5]} 5. Nc3 {[%clk 0:03:02.2]}
5... Nf6 {[%clk 0:03:03.3]} 6. e4 {[%clk 0:03:03]} 6... g6 {[%clk 0:03:04.3]} 7.
h3 {[%clk 0:03:04.3]} 7... Bg7 {[%clk 0:03:02]} 8. Nf3 {[%clk 0:03:05]} 8... O-O
{[%clk 0:03:02.4]} 9. Bd3 {[%clk 0:03:05.4]} 9... a6 {[%clk 0:03:02.6]} 10. a4
{[%clk 0:03:05.7]} 10... Nbd7 {[%clk 0:03:03.1]} 11. O-O {[%clk 0:03:05.3]}
11... Qe7 {[%clk 0:03:01.6]} 12. Bf4 {[%clk 0:03:05.2]} 12... Ne8 {[%clk
0:03:00.5]} 13. Re1 {[%clk 0:03:02.3]} 13... Ne5 {[%clk 0:02:57.6]} 14. Be2
{[%clk 0:02:55.5]} 14... b6 {[%clk 0:02:43.4]} 15. Qd2 {[%clk 0:02:46.1]} 15...
Rb8 {[%clk 0:02:35]} 16. Bg5 {[%clk 0:02:39.8]} 16... Bf6 {[%clk 0:02:07.6]} 17.
Bxf6 {[%clk 0:02:40.2]} 17... Qxf6 {[%clk 0:02:06.7]} 18. Nxe5 {[%clk
0:02:40.9]} 18... dxe5 {[%clk 0:02:05.4]} 19. Rab1 {[%clk 0:02:25]} 19... Nd6
{[%clk 0:02:04.6]} 20. b4 {[%clk 0:02:25.2]} 20... c4 {[%clk 0:01:57.2]} 21. b5
{[%clk 0:02:24.3]} 21... a5 {[%clk 0:01:52.8]} 22. Rec1 {[%clk 0:02:19.1]} 22...
Qh4 {[%clk 0:01:46.9]} 23. Qe3 {[%clk 0:02:17]} 23... Bd7 {[%clk 0:01:41]} 24.
f3 {[%clk 0:02:04.5]} 24... Qg3 {[%clk 0:01:22.5]} 25. Nd1 {[%clk 0:01:50.7]}
25... Bxh3 {[%clk 0:01:16.8]} 26. Qf2 {[%clk 0:01:46.5]} 26... Qg5 {[%clk
0:01:09.9]} 27. Bxc4 {[%clk 0:01:40.9]} 27... Rfc8 {[%clk 0:01:05.9]} 28. Ne3
{[%clk 0:01:37.7]} 28... Rc5 {[%clk 0:00:59.1]} 29. Bd3 {[%clk 0:01:16]} 29...
Rbc8 {[%clk 0:00:58.5]} 30. Rxc5 {[%clk 0:01:16.3]} 30... Rxc5 {[%clk 0:00:59]}
31. Kf1 {[%clk 0:01:15.1]} 31... Bd7 {[%clk 0:00:56.2]} 32. Ke2 {[%clk
0:00:59.8]} 32... f5 {[%clk 0:00:54.6]} 33. Rh1 {[%clk 0:00:52.9]} 33... Rc3
{[%clk 0:00:40.6]} 34. Nc2 {[%clk 0:00:20.7]} 34... fxe4 {[%clk 0:00:36.6]} 35.
fxe4 {[%clk 0:00:03]} 35... Bg4+ {[%clk 0:00:36.4]} 36. Kf1 {[%clk 0:00:02.9]}
36... Rxd3 {[%clk 0:00:31]} 37. Qxb6 {[%clk 0:00:02.4]} 37... Rd1+ {[%clk
0:00:29]} 38. Ne1 {[%clk 0:00:02.5]} 38... Qf4+ {[%clk 0:00:29]} 39. Qf2 {[%clk
0:00:02.7]} 39... Rxe1+ {[%clk 0:00:21.6]} 0-1

[Event "*** Titled Tuesday Blitz"]
[Site "Chess.com"]
[Date "2018.01.02"]
[Round "5"]
[White "ChainsOfFantasia"]
[Black "Korchmar_Vasiliy"]
[Result "1-0"]
[WhiteElo "2462"]
[BlackElo "2511"]
[TimeControl "180+2"]
[EndTime "14:07:53 PST"]
[Termination "ChainsOfFantasia won by resignation"]

1. d4 {[%clk 0:03:01.9]} 1... Nf6 {[%clk 0:02:58.4]} 2. c4 {[%clk 0:03:02.7]}
2... e6 {[%clk 0:02:59.4]} 3. Nf3 {[%clk 0:03:03.9]} 3... d5 {[%clk 0:03:00]} 4.
Nc3 {[%clk 0:03:04.8]} 4... Bb4 {[%clk 0:03:00.9]} 5. e3 {[%clk 0:03:05]} 5...
O-O {[%clk 0:02:59.1]} 6. cxd5 {[%clk 0:03:02]} 6... exd5 {[%clk 0:02:59.9]} 7.
Bd3 {[%clk 0:03:01.4]} 7... Re8 {[%clk 0:02:58.7]} 8. O-O {[%clk 0:03:02.1]}
8... c6 {[%clk 0:02:59.6]} 9. a3 {[%clk 0:02:59.8]} 9... Bd6 {[%clk 0:03:00.7]}
10. b4 {[%clk 0:03:00.4]} 10... Nbd7 {[%clk 0:02:57.2]} 11. Rb1 {[%clk
0:03:00.5]} 11... Ne4 {[%clk 0:02:56]} 12. Qc2 {[%clk 0:02:59.7]} 12... Ndf6
{[%clk 0:02:47]} 13. a4 {[%clk 0:03:00]} 13... Bg4 {[%clk 0:02:40.8]} 14. Ne5
{[%clk 0:02:47]} 14... Bxe5 {[%clk 0:02:42.1]} 15. dxe5 {[%clk 0:02:48.9]} 15...
Rxe5 {[%clk 0:02:43.2]} 16. f3 {[%clk 0:02:50]} 16... Nxc3 {[%clk 0:02:38.7]}
17. Qxc3 {[%clk 0:02:50.5]} 17... Bf5 {[%clk 0:02:39.6]} 18. Qxe5 {[%clk
0:02:21.2]} 18... Bxd3 {[%clk 0:02:40]} 19. Bb2 {[%clk 0:02:22.7]} 19... Bxf1
{[%clk 0:02:29.5]} 20. Rxf1 {[%clk 0:02:22.6]} 20... Qd7 {[%clk 0:02:24.1]} 21.
Qg5 {[%clk 0:02:20.7]} 21... h6 {[%clk 0:02:22.1]} 22. Qg3 {[%clk 0:02:20.4]}
22... Qe7 {[%clk 0:02:20.3]} 23. e4 {[%clk 0:02:19.3]} 23... dxe4 {[%clk
0:01:38]} 24. fxe4 {[%clk 0:02:21.2]} 24... Ne8 {[%clk 0:01:39.6]} 25. Qc3
{[%clk 0:02:02.1]} 25... Rd8 {[%clk 0:01:35]} 26. b5 {[%clk 0:01:58.4]} 26...
cxb5 {[%clk 0:01:33.5]} 27. axb5 {[%clk 0:02:00.3]} 27... Qxe4 {[%clk
0:01:35.1]} 28. Re1 {[%clk 0:02:00.2]} 28... Qg6 {[%clk 0:01:33.6]} 29. h3
{[%clk 0:01:49.4]} 29... Nf6 {[%clk 0:01:30.1]} 30. Qc7 {[%clk 0:01:44.8]} 30...
Rd2 {[%clk 0:01:28.7]} 31. Qd8+ {[%clk 0:01:04.7]} 31... Kh7 {[%clk 0:01:29.3]}
32. Qxd2 {[%clk 0:01:04.5]} 32... Ne4 {[%clk 0:01:04.9]} 33. Qc2 {[%clk
0:01:00.5]} 33... f5 {[%clk 0:01:04.5]} 34. Bd4 {[%clk 0:00:58.2]} 34... Qd6
{[%clk 0:01:01.6]} 35. Rxe4 {[%clk 0:00:57.7]} 35... fxe4 {[%clk 0:01:02.2]} 36.
Qxe4+ {[%clk 0:00:59.6]} 36... Kg8 {[%clk 0:01:00.1]} 37. Qe8+ {[%clk
0:00:48.5]} 37... Kh7 {[%clk 0:01:00.7]} 38. Qe4+ {[%clk 0:00:50]} 38... Kg8
{[%clk 0:01:00.8]} 39. Qe5 {[%clk 0:00:51.2]} 39... Qxe5 {[%clk 0:00:41.8]} 40.
Bxe5 {[%clk 0:00:53.1]} 40... g6 {[%clk 0:00:43]} 41. Kf1 {[%clk 0:00:50.7]}
41... Kf7 {[%clk 0:00:44.3]} 42. Ke2 {[%clk 0:00:51.9]} 42... Ke6 {[%clk
0:00:44.1]} 43. Bd4 {[%clk 0:00:53.4]} 43... a6 {[%clk 0:00:39]} 44. bxa6 {[%clk
0:00:55.3]} 44... bxa6 {[%clk 0:00:40.9]} 45. Bc3 {[%clk 0:00:56.7]} 45... Kf5
{[%clk 0:00:37.8]} 46. Kf3 {[%clk 0:00:57.1]} 46... h5 {[%clk 0:00:36.6]} 47. g3
{[%clk 0:00:50.3]} 47... Ke6 {[%clk 0:00:34.3]} 48. Ke4 {[%clk 0:00:51.1]} 48...
g5 {[%clk 0:00:32.8]} 49. Bd2 {[%clk 0:00:50.3]} 49... h4 {[%clk 0:00:28.3]} 50.
g4 {[%clk 0:00:48.7]} 50... Kf6 {[%clk 0:00:26.8]} 51. Kd5 {[%clk 0:00:49.3]}
1-0